fUSD/lending_fUSD_20240218
["ID","MTS","AMOUNT","RATE_DAILY","PERIOD"]
[314388450,1708255843809,-1097.73,0.00036799,2]
[314388451,1708255843818,-500.0,0.00036799,2]
[314388452,1708255843828,-500.0,0.00036799,2]
[314388453,1708255843837,-500.0,0.00036799,2]
[314388454,1708255843846,-500.0,0.00036799,2]
[314388455,1708255843855,-500.0,0.00036799,2]
[314388456,1708255843866,-500.0,0.00036799,2]
[314388457,1708255843875,-57810.84646016,0.000368,2]
[314388458,1708255843885,-3296.051575,0.000368,2]
[314388459,1708255843894,-1227.45634,0.000368,2]
[314388460,1708255843904,-5171.018256,0.000368,2]
[314388461,1708255843913,-2129.278997,0.000368,2]
[314388462,1708255843922,-2029.04268393,0.00036809,9]
[314388463,1708255843931,-606.75,0.00036828,2]
[314388464,1708255843941,-317.77,0.00036863,2]
[314388465,1708255843950,-720.45301295,0.00036879,8]
[314388466,1708255843960,-249.84918592,0.00036899,2]
[314388467,1708255844014,-223.09137134,0.00036899,2]
[314388468,1708255844024,-5000.0,0.000369,3]
[314388469,1708255844033,-2029.04268393,0.00036918,10]
[314388470,1708255844043,-150.0,0.00036923,2]
[314388471,1708255844053,-151.0,0.00036949,2]
[314388472,1708255844063,-1000.0,0.00036998,2]
[314388473,1708255844075,-890.02085863,0.00036998,2]
[314388474,1708255844084,-652.26,0.00036998,2]
[314388475,1708255844094,-970.46,0.00036998,2]
[314388476,1708255844103,-500.0,0.00036998,2]
[314388477,1708255844113,-3924.06,0.00036998,2]
[314388478,1708255844123,-741.76,0.00036998,2]
[314388479,1708255844132,-1097.73,0.00036998,2]
[314388480,1708255844142,-500.0,0.00036998,2]
[314388481,1708255844152,-500.0,0.00036998,2]
[314388482,1708255844161,-500.0,0.00036998,2]
[314388483,1708255844171,-500.0,0.00036998,2]
[314388484,1708255844181,-500.0,0.00036998,2]
[314388485,1708255844190,-165.11506643,0.00036999,2]
[314388486,1708255844199,-500.0,0.00036999,2]
[314388487,1708255844209,-500.0,0.00036999,2]
[314388488,1708255844219,-500.0,0.00036999,2]
[314388489,1708255844230,-500.0,0.00036999,2]
[314388490,1708255844241,-500.0,0.00036999,2]
[314388491,1708255844251,-500.0,0.00036999,2]
[314388492,1708255844261,-500.0,0.00036999,2]
[314388493,1708255844270,-500.0,0.00036999,2]
[314388494,1708255844279,-500.0,0.00036999,2]
[314388495,1708255844288,-500.0,0.00036999,2]
[314388496,1708255844298,-500.0,0.00036999,2]
[314388497,1708255844307,-500.0,0.00036999,2]
[314388498,1708255844317,-500.0,0.00036999,2]
[314388499,1708255844328,-500.0,0.00036999,2]
[314388500,1708255844338,-207.14855014,0.00036999,2]
[314388501,1708255844348,-506.76,0.00036999,2]
[314388502,1708255844357,-506.76,0.00036999,2]
[314388503,1708255844367,-506.76,0.00036999,2]
[314388504,1708255844376,-506.76,0.00036999,2]
[314388505,1708255844387,-500.0,0.00036999,2]
[314388506,1708255844397,-500.0,0.00036999,2]
[314388507,1708255844407,-500.0,0.00036999,2]
[314388508,1708255844417,-500.0,0.00036999,2]
[314388509,1708255844429,-500.0,0.00036999,2]
[314388510,1708255844440,-500.0,0.00036999,2]
[314388511,1708255844450,-500.0,0.00036999,2]
[314388512,1708255844459,-500.0,0.00036999,2]
[314388513,1708255844470,-500.0,0.00036999,2]
[314388514,1708255844480,-500.0,0.00036999,2]
[314388515,1708255844490,-500.0,0.00036999,2]
[314388516,1708255844502,-500.0,0.00036999,2]
[314388517,1708255844515,-500.0,0.00036999,2]
[314388518,1708255844524,-500.0,0.00036999,2]
[314388519,1708255844534,-500.0,0.00036999,2]
[314388520,1708255844546,-500.0,0.00036999,2]
[314388521,1708255844557,-500.0,0.00036999,2]
[314388522,1708255844568,-500.0,0.00036999,2]
[314388523,1708255844577,-500.0,0.00036999,2]
[314388524,1708255844586,-500.0,0.00036999,2]
[314388525,1708255844596,-1126.94,0.00036999,2]
[314388526,1708255844607,-1126.94,0.00036999,2]
[314388527,1708255844617,-1126.94,0.00036999,2]
[314388528,1708255844627,-1126.94,0.00036999,2]
[314388529,1708255844639,-500.0,0.00036999,2]
[314388530,1708255844648,-500.0,0.00036999,2]
[314388531,1708255844660,-500.0,0.00036999,2]
[314388532,1708255844671,-500.0,0.00036999,2]
[314388533,1708255844680,-500.0,0.00036999,2]
[314388534,1708255844691,-500.0,0.00036999,2]
[314388535,1708255844702,-500.0,0.00036999,2]
[314388536,1708255844711,-500.0,0.00036999,2]
[314388537,1708255844720,-512.21,0.00036999,2]
[314388538,1708255844730,-512.21,0.00036999,2]
[314388539,1708255844739,-512.21,0.00036999,2]
[314388540,1708255844749,-512.21,0.00036999,2]
[314388541,1708255844759,-500.0,0.00036999,2]
[314388542,1708255844768,-500.0,0.00036999,2]
[314388543,1708255844777,-500.0,0.00036999,2]
[314388544,1708255844786,-500.0,0.00036999,2]
[314388545,1708255844797,-500.0,0.00036999,2]
[314388546,1708255844807,-500.0,0.00036999,2]
[314388547,1708255844817,-500.0,0.00036999,2]
[314388548,1708255844828,-500.0,0.00036999,2]
[314388549,1708255844838,-500.0,0.00036999,2]
[314388550,1708255844848,-500.0,0.00036999,2]
[314388551,1708255844860,-500.0,0.00036999,2]
[314388552,1708255844869,-500.0,0.00036999,2]
[314388553,1708255844878,-500.0,0.00036999,2]
[314388554,1708255844888,-500.0,0.00036999,2]
[314388555,1708255844897,-500.0,0.00036999,2]
[314388556,1708255844908,-500.0,0.00036999,2]
[314388557,1708255844918,-500.0,0.00036999,2]
[314388558,1708255844927,-500.0,0.00036999,2]
[314388559,1708255844937,-500.0,0.00036999,2]
[314388560,1708255844946,-500.0,0.00036999,2]
[314388561,1708255844955,-557.90613345,0.00036999,2]
[314388562,1708255844965,-500.0,0.00036999,2]
[314388563,1708255844975,-100000.0,0.00037,7]
[314388564,1708255844984,-20173.96637061,0.00037,21]
[314388565,1708255844993,-16666.10027115,0.00037,3]
[314388566,1708255845003,-12653.16,0.00037,2]
[314388567,1708255845012,-312.44640567,0.00037,4]
[314388568,1708255845022,-701.81610333,0.0003701,2]
[314388569,1708255845032,-150.0,0.00037011,2]
[314388570,1708255845042,-150.0,0.00037012,7]
[314388571,1708255845051,-2029.04268393,0.00037027,10]
[314388572,1708255845061,-535.90876336,0.00037032,2]
[314388573,1708255845070,-1000.0,0.00037035,2]
[314388574,1708255845080,-317.77,0.00037041,2]
[314388575,1708255845089,-188.55770391,0.0003705,2]
[314388576,1708255845098,-165.0,0.00037071,7]
[314388577,1708255845108,-1186.02,0.00037075,2]
[314388578,1708255845117,-150.0,0.00037084,2]
[314388579,1708255845127,-150.0,0.00037109,2]
[314388580,1708255845136,-210.729625,0.00037109,2]
[314388581,1708255845145,-221.47121017,0.00037124,2]
[314388582,1708255845155,-720.45301295,0.00037134,8]
[314388583,1708255845163,-2029.04268393,0.00037136,10]
[314388584,1708255845173,-300.0,0.00037171,2]
[314388585,1708255845182,-150.0,0.00037182,2]
[314388586,1708255845191,-150.0,0.00037188,2]
[314388587,1708255845201,-317.77,0.00037219,2]
[314388588,1708255845211,-506.76,0.00037229,2]
[314388589,1708255845220,-500.0,0.00037229,2]
[314388590,1708255845230,-500.0,0.00037229,2]
[314388591,1708255845243,-500.0,0.00037229,2]
[314388592,1708255845252,-652.26,0.00037229,2]
[314388593,1708255845262,-500.0,0.00037229,2]
[314388594,1708255845271,-970.46,0.00037229,2]
[314388595,1708255845280,-500.0,0.00037229,2]
[314388596,1708255845290,-500.0,0.00037229,2]
[314388597,1708255845299,-500.0,0.00037229,2]
[314388598,1708255845308,-512.21,0.00037229,2]
[314388599,1708255845318,-3924.06,0.00037229,2]
[314388600,1708255845328,-741.76,0.00037229,2]
[314388601,1708255845338,-1097.73,0.00037229,2]
[314388602,1708255845348,-500.0,0.00037229,2]
[314388603,1708255845358,-500.0,0.00037229,2]
[314388604,1708255845367,-154.63198929,0.00037235,7]
[314388605,1708255845377,-150.0,0.00037245,2]
[314388606,1708255845386,-2029.04268393,0.00037245,10]
[314388607,1708255845395,-228.717217,0.00037247,2]
[314388608,1708255845405,-500.0,0.00037254,2]
[314388609,1708255845415,-1126.94,0.00037254,2]
[314388610,1708255845427,-549.18519429,0.00037254,2]
[314388611,1708255845438,-150.0,0.00037262,2]
[314388612,1708255845448,-158.0,0.00037271,7]
[314388613,1708255845458,-200.0,0.00037327,3]
[314388614,1708255845468,-152.2660672,0.00037329,2]
[314388615,1708255845477,-150.0,0.00037335,2]
[314388616,1708255845487,-150.0,0.00037349,2]
[314388617,1708255845497,-2029.04268393,0.00037355,10]
[314388618,1708255845507,-535.90876336,0.00037366,2]
[314388619,1708255845517,-188.55770391,0.00037374,2]
[314388620,1708255845527,-720.45301295,0.00037389,8]
[314388621,1708255845537,-150.0,0.0003739,2]
[314388622,1708255845546,-150.0,0.00037392,2]
[314388623,1708255845555,-163.89,0.00037397,2]
[314388624,1708255845564,-533.27465333,0.00037398,2]
[314388625,1708255845574,-3927.23956125,0.00037399,15]
[314388626,1708255845583,-249.84918592,0.000374,2]
[314388627,1708255845592,-223.09137132,0.000374,2]
[314388628,1708255845601,-150.0,0.00037404,2]
[314388629,1708255845610,-154.73615782,0.00037422,2]
[314388630,1708255845619,-150.0,0.00037447,2]
[314388631,1708255845629,-153.75,0.00037452,2]
[314388632,1708255845638,-2029.04268393,0.00037464,10]
[314388633,1708255845647,-200.0,0.00037465,3]
[314388634,1708255845656,-800.0,0.00037465,3]
[314388635,1708255845666,-200.0,0.00037465,10]
[314388636,1708255845675,-500.0,0.00037465,10]
[314388637,1708255845686,-200.0,0.00037465,10]
[314388638,1708255845695,-300.0,0.00037496,2]
[314388639,1708255845705,-300.0,0.00037496,2]
[314388640,1708255845714,-300.0,0.00037496,2]
[314388641,1708255845723,-231.59285315,0.00037496,2]
[314388642,1708255845733,-800.0,0.00037497,3]
[314388643,1708255845745,-300.0,0.00037534,2]
[314388644,1708255845755,-500.0,0.00037535,2]
[314388645,1708255845764,-500.0,0.00037535,2]
[314388646,1708255845774,-500.0,0.00037535,2]
[314388647,1708255845784,-500.0,0.00037535,2]
[314388648,1708255845794,-500.0,0.00037535,2]
[314388649,1708255845803,-500.0,0.00037535,2]
[314388650,1708255845813,-500.0,0.00037535,2]
[314388651,1708255845822,-500.0,0.00037535,2]
[314388652,1708255845832,-500.0,0.00037535,2]
[314388653,1708255845841,-500.0,0.00037535,2]
[314388654,1708255845850,-500.0,0.00037535,2]
[314388655,1708255845860,-500.0,0.00037535,2]
[314388656,1708255845871,-500.0,0.00037535,2]
[314388657,1708255845881,-500.0,0.00037535,2]
[314388658,1708255845890,-500.0,0.00037535,2]
[314388659,1708255845900,-500.0,0.00037535,2]
[314388660,1708255845909,-500.0,0.00037535,2]
[314388661,1708255845918,-500.0,0.00037535,2]
[314388662,1708255845927,-500.0,0.00037535,2]
[314388663,1708255845937,-500.0,0.00037535,2]
[314388664,1708255845946,-500.0,0.00037535,2]
[314388665,1708255845955,-500.0,0.00037535,2]
[314388666,1708255845964,-1500.0,0.00037539,2]
[314388667,1708255845974,-500.0,0.00037539,2]
[314388668,1708255845983,-500.0,0.00037539,2]
[314388669,1708255845992,-500.0,0.00037539,2]
[314388670,1708255846002,-500.0,0.00037539,2]
[314388671,1708255846011,-500.0,0.00037539,2]
[314388672,1708255846021,-500.0,0.00037539,2]
[314388673,1708255846031,-500.0,0.00037539,2]
[314388674,1708255846041,-500.0,0.00037539,2]
[314388675,1708255846050,-500.0,0.00037539,2]
[314388676,1708255846059,-500.0,0.00037539,2]
[314388677,1708255846069,-500.0,0.00037539,2]
[314388678,1708255846078,-500.0,0.00037539,2]
[314388679,1708255846088,-500.0,0.00037539,2]
[314388680,1708255846097,-500.0,0.00037539,2]
[314388681,1708255846106,-500.0,0.00037539,2]
[314388682,1708255846116,-500.0,0.00037539,2]
[314388683,1708255846125,-500.0,0.00037539,2]
[314388685,1708255846135,-500.0,0.00037539,2]
[314388686,1708255846145,-500.0,0.00037539,2]
[314388687,1708255846154,-500.0,0.00037539,2]
[314388688,1708255846163,-500.0,0.00037539,2]
[314388689,1708255846173,-500.0,0.00037539,2]
[314388690,1708255846182,-500.0,0.00037539,2]
[314388691,1708255846191,-500.0,0.00037539,2]
[314388692,1708255846201,-500.0,0.00037539,2]
[314388693,1708255846210,-500.0,0.00037539,2]
[314388694,1708255846219,-500.0,0.00037539,2]
[314388695,1708255846229,-500.0,0.00037539,2]
[314388696,1708255846238,-500.0,0.00037539,2]
[314388697,1708255846248,-500.0,0.00037539,2]
[314388698,1708255846257,-500.0,0.00037539,2]
[314388699,1708255846267,-400.0,0.00037539,2]
[314388700,1708255846277,-500.0,0.00037539,2]
[314388701,1708255846286,-500.0,0.00037539,2]
[314388702,1708255846296,-500.0,0.00037539,2]
[314388703,1708255846306,-500.0,0.00037539,2]
[314388704,1708255846316,-500.0,0.00037539,2]
[314388705,1708255846326,-500.0,0.00037539,2]
[314388706,1708255846336,-500.0,0.00037539,2]
[314388707,1708255846346,-500.0,0.00037539,2]
[314388708,1708255846355,-500.0,0.00037539,2]
[314388709,1708255846364,-500.0,0.00037539,2]
[314388710,1708255846374,-500.0,0.00037539,2]
[314388711,1708255846384,-500.0,0.00037539,2]
[314388712,1708255846393,-500.0,0.00037539,2]
[314388713,1708255846403,-500.0,0.00037539,2]
[314388714,1708255846413,-500.0,0.00037539,2]
[314388715,1708255846424,-500.0,0.00037539,2]
[314388716,1708255846436,-500.0,0.00037539,2]
[314388717,1708255846445,-500.0,0.00037539,2]
[314388718,1708255846455,-500.0,0.00037539,2]
[314388719,1708255846465,-500.0,0.00037539,2]
[314388720,1708255846475,-500.0,0.00037539,2]
[314388721,1708255846486,-500.0,0.00037539,2]
[314388722,1708255846496,-500.0,0.00037539,2]
[314388723,1708255846507,-500.0,0.00037539,2]
[314388724,1708255846516,-500.0,0.00037539,2]
[314388725,1708255846527,-500.0,0.00037539,2]
[314388726,1708255846537,-500.0,0.00037539,2]
[314388727,1708255846546,-500.0,0.00037539,2]
[314388728,1708255846556,-500.0,0.00037539,2]
[314388729,1708255846566,-500.0,0.00037539,2]
[314388730,1708255846575,-500.0,0.00037539,2]
[314388731,1708255846584,-500.0,0.00037539,2]
[314388732,1708255846594,-500.0,0.00037539,2]
[314388733,1708255846603,-500.0,0.00037539,2]
[314388734,1708255846612,-500.0,0.00037539,2]
[314388735,1708255846621,-500.0,0.00037539,2]
[314388736,1708255846632,-500.0,0.00037539,2]
[314388737,1708255846642,-500.0,0.00037539,2]
[314388738,1708255846652,-500.0,0.00037539,2]
[314388739,1708255846662,-500.0,0.00037539,2]
[314388740,1708255846671,-500.0,0.00037539,2]
[314388741,1708255846681,-500.0,0.00037539,2]
[314388742,1708255846691,-500.0,0.00037539,2]
[314388743,1708255846700,-500.0,0.00037539,2]
[314388744,1708255846709,-500.0,0.00037539,2]
[314388745,1708255846719,-500.0,0.00037539,2]
[314388746,1708255846729,-500.0,0.00037539,2]
[314388747,1708255846738,-500.0,0.00037539,2]
[314388748,1708255846748,-500.0,0.00037539,2]
[314388749,1708255846757,-500.0,0.00037539,2]
[314388750,1708255846767,-500.0,0.00037539,2]
[314388751,1708255846776,-500.0,0.00037539,2]
[314388752,1708255846786,-500.0,0.00037539,2]
[314388753,1708255846796,-500.0,0.00037539,2]
[314388754,1708255846805,-500.0,0.0003754,2]
[314388755,1708255846815,-500.0,0.0003754,2]
[314388756,1708255846824,-500.0,0.0003754,2]
[314388757,1708255846834,-500.0,0.0003754,2]
[314388758,1708255846843,-500.0,0.0003754,2]
[314388759,1708255846853,-500.0,0.0003754,2]
[314388760,1708255846862,-500.0,0.0003754,2]
[314388761,1708255846871,-500.0,0.0003754,2]
[314388762,1708255846880,-500.0,0.0003754,2]
[314388763,1708255846889,-500.0,0.0003754,2]
[314388764,1708255846899,-500.0,0.0003754,2]
[314388765,1708255846909,-500.0,0.0003754,2]
[314388766,1708255846919,-500.0,0.0003754,2]
[314388767,1708255846928,-500.0,0.0003754,2]
[314388768,1708255846937,-500.0,0.0003754,2]
[314388769,1708255846947,-500.0,0.0003754,2]
[314388770,1708255846956,-500.0,0.0003754,2]
[314388771,1708255846965,-500.0,0.0003754,2]
[314388772,1708255846974,-500.0,0.0003754,2]
[314388773,1708255846983,-500.0,0.0003754,2]
[314388774,1708255846993,-500.0,0.0003754,2]
[314388775,1708255847002,-500.0,0.0003754,2]
[314388776,1708255847011,-500.0,0.0003754,2]
[314388777,1708255847021,-500.0,0.0003754,2]
[314388778,1708255847030,-500.0,0.0003754,2]
[314388779,1708255847039,-500.0,0.0003754,2]
[314388780,1708255847048,-500.0,0.0003754,2]
[314388781,1708255847057,-500.0,0.0003754,2]
[314388782,1708255847067,-500.0,0.0003754,2]
[314388783,1708255847076,-500.0,0.0003754,2]
[314388784,1708255847085,-500.0,0.0003754,2]
[314388785,1708255847095,-500.0,0.0003754,2]
[314388786,1708255847105,-500.0,0.0003754,2]
[314388787,1708255847115,-500.0,0.00037541,2]
[314388788,1708255847124,-183.16782828,0.00037541,2]
[314388790,1708255847134,-150.0,0.0003756,7]
[314388792,1708255847143,-10872.96956799,0.00037561,2]
[314388794,1708255847153,-1847.59969349,0.00037564,2]
[314388796,1708255847162,-150.0,0.00037568,2]
[314388798,1708255847171,-2029.04268393,0.00037573,10]
[314388800,1708255847181,-150.0,0.00037587,2]
[314388801,1708255847191,-500.0,0.00037599,2]
[314388802,1708255847200,-32314.00069961,0.000376,2]
[314388803,1708255847210,-165.0,0.00037619,7]
[314388804,1708255847219,-150.0,0.00037637,2]
[314388805,1708255847229,-720.45301295,0.00037645,8]
[314388806,1708255847239,-150.0,0.00037651,2]
[314388807,1708255847248,-744.64436255,0.0003767,2]
[314388808,1708255847258,-180.0,0.00037671,2]
[314388809,1708255847267,-2029.04268393,0.00037682,10]
[314388810,1708255847276,-500.0,0.00037689,2]
[314388811,1708255847286,-506.76,0.00037689,2]
[314388812,1708255847295,-506.76,0.00037689,2]
[314388813,1708255847305,-506.76,0.00037689,2]
[314388814,1708255847314,-506.76,0.00037689,2]
[314388815,1708255847323,-614.93,0.00037689,2]
[314388816,1708255847332,-500.0,0.00037689,2]
[314388817,1708255847342,-500.0,0.00037689,2]
[314388818,1708255847351,-500.0,0.00037689,2]
[314388819,1708255847360,-500.0,0.00037689,2]
[314388820,1708255847369,-500.0,0.00037689,2]
[314388821,1708255847379,-500.0,0.00037689,2]
[314388822,1708255847389,-500.0,0.00037689,2]
[314388823,1708255847399,-500.0,0.00037689,2]
[314388824,1708255847409,-500.0,0.00037689,2]
[314388825,1708255847418,-500.0,0.00037689,2]
[314388826,1708255847430,-500.0,0.00037689,2]
[314388827,1708255847440,-500.0,0.00037689,2]
[314388828,1708255847449,-500.0,0.00037689,2]
[314388829,1708255847459,-500.0,0.00037689,2]
[314388830,1708255847470,-1126.94,0.00037689,2]
[314388831,1708255847480,-1126.94,0.00037689,2]
[314388832,1708255847490,-645.25092,0.00037689,2]
[314388833,1708255847499,-500.0,0.00037689,2]
[314388834,1708255847510,-500.0,0.00037689,2]
[314388835,1708255847519,-500.0,0.00037689,2]
[314388836,1708255847529,-500.0,0.00037689,2]
[314388837,1708255847538,-512.21,0.00037689,2]
[314388838,1708255847548,-512.21,0.00037689,2]
[314388839,1708255847557,-512.21,0.00037689,2]
[314388840,1708255847566,-512.21,0.00037689,2]
[314388841,1708255847576,-500.0,0.00037689,2]
[314388842,1708255847585,-500.0,0.00037689,2]
[314388843,1708255847595,-236.70233278,0.00037689,2]
[314388844,1708255847604,-500.0,0.00037689,2]
[314388845,1708255847615,-466.96433888,0.00037689,2]
[314388846,1708255847626,-506.76,0.0003769,2]
[314388847,1708255847636,-500.0,0.0003769,2]
[314388848,1708255847647,-500.0,0.0003769,2]
[314388849,1708255847658,-500.0,0.0003769,2]
[314388850,1708255847668,-500.0,0.0003769,2]
[314388851,1708255847678,-500.0,0.0003769,2]
[314388852,1708255847689,-1126.94,0.0003769,2]
[314388853,1708255847701,-1126.94,0.0003769,2]
[314388854,1708255847712,-1126.94,0.0003769,2]
[314388855,1708255847723,-500.0,0.0003769,2]
[314388856,1708255847735,-512.21,0.0003769,2]
[314388857,1708255847745,-153.67516026,0.00037698,2]
[314388858,1708255847755,-188.55770391,0.00037699,2]
[314388859,1708255847766,-2672.43756973,0.000377,37]
[314388860,1708255847776,-535.90876336,0.000377,2]
[314388861,1708255847786,-1491.8,0.000377,3]
[314388862,1708255847798,-228.717217,0.00037706,2]
[314388863,1708255847809,-150.0,0.00037707,2]
[314388864,1708255847818,-150.0,0.00037708,2]
[314388865,1708255847828,-150.0,0.00037742,2]
[314388866,1708255847837,-150.0,0.00037746,2]
[314388867,1708255847848,-150.0,0.00037756,2]
[314388868,1708255847857,-1000.0,0.0003777,2]
[314388869,1708255847867,-500.0,0.0003777,2]
[314388870,1708255847877,-1000.0,0.0003777,2]
[314388871,1708255847887,-500.0,0.0003777,2]
[314388872,1708255847899,-257.92374309,0.00037782,2]
[314388873,1708255847910,-257.92374309,0.00037788,2]
[314388874,1708255847919,-150.0,0.0003779,2]
[314388875,1708255847929,-2029.04268393,0.00037791,11]
[314388876,1708255847939,-652.26,0.00037791,2]
[314388877,1708255847948,-652.26,0.00037791,2]
[314388878,1708255847961,-970.46,0.00037791,2]
[314388879,1708255847971,-970.46,0.00037791,2]
[314388880,1708255847981,-500.0,0.00037791,2]
[314388881,1708255847991,-500.0,0.00037791,2]
[314388882,1708255848001,-3924.06,0.00037791,2]
[314388883,1708255848011,-3924.06,0.00037791,2]
[314388884,1708255848022,-741.76,0.00037791,2]
[314388885,1708255848032,-741.76,0.00037791,2]
[314388886,1708255848041,-1097.73,0.00037791,2]
[314388887,1708255848051,-1097.73,0.00037791,2]
[314388888,1708255848061,-500.0,0.00037791,2]
[314388889,1708255848071,-500.0,0.00037791,2]
[314388890,1708255848081,-253.91207861,0.00037791,2]
[314388891,1708255848091,-652.26,0.00037792,2]
[314388892,1708255848100,-652.26,0.00037792,2]
[314388893,1708255848110,-652.26,0.00037792,2]
[314388894,1708255848120,-970.46,0.00037792,2]
[314388895,1708255848130,-970.46,0.00037792,2]
[314388896,1708255848140,-970.46,0.00037792,2]
[314388897,1708255848150,-500.0,0.00037792,2]
[314388898,1708255848160,-500.0,0.00037792,2]
[314388899,1708255848170,-500.0,0.00037792,2]
[314388900,1708255848180,-3924.06,0.00037792,2]
[314388901,1708255848191,-3924.06,0.00037792,2]
[314388902,1708255848201,-3924.06,0.00037792,2]
[314388903,1708255848211,-741.76,0.00037792,2]
[314388904,1708255848222,-741.76,0.00037792,2]
[314388905,1708255848388,-741.76,0.00037792,2]
[314388906,1708255848400,-1097.73,0.00037792,2]
[314388907,1708255848411,-1097.73,0.00037792,2]
[314388908,1708255848423,-1097.73,0.00037792,2]
[314388909,1708255848437,-500.0,0.00037792,2]
[314388910,1708255848448,-517.0421202,0.00037792,2]
[314388911,1708255848459,-192089.29864693,0.00037792,2]
[314388912,1708255848494,-517.52701,0.00037792,2]
[314388913,1708255848757,-500.0,0.00036213,2]
[314388914,1708255848767,-500.0,0.00036286,2]
[314388915,1708255848777,-500.0,0.00036397,2]
[314388916,1708255848786,-500.0,0.00036499,2]
[314388917,1708255848797,-500.0,0.00036999,2]
[314388918,1708255848807,-500.0,0.00036999,2]
[314388919,1708255848816,-500.0,0.00036999,2]
[314388920,1708255848826,-500.0,0.00036999,2]
[314388921,1708255848835,-95.0467332,0.00036999,2]
[314388922,1708255848859,-404.9532668,0.00036999,2]
[314388923,1708255848871,-500.0,0.00036999,2]
[314388924,1708255848881,-500.0,0.00036999,2]
[314388925,1708255848891,-500.0,0.00036999,2]
[314388926,1708255848900,-8445.86233251,0.00037792,2]
[314388927,1708255848917,-2584.85,0.00037792,2]
[314388928,1708255848929,-1402.8,0.00037792,2]
[314388946,1708257031449,-206.0,0.00025222,2]
[314388947,1708257031459,-2152.79175909,0.00026219,2]
[314388948,1708257031468,-285.10754716,0.0002622,2]
[314388949,1708257031688,-66.89245284,0.0002622,2]
[314388950,1708257031697,-231.73394899,0.00026222,2]
[314388951,1708257031707,-1000.0,0.00027,2]
[314388952,1708257031716,-206.0,0.0003019,10]
[314388953,1708257031725,-3000.0,0.00031891,2]
[314388954,1708257031735,-532.49507028,0.00031892,4]
[314388955,1708257031744,-153.82465313,0.00032654,2]
[314388956,1708257031754,-487.04,0.00033687,2]
[314388957,1708257031763,-1160.417679,0.000348,2]
[314388958,1708257031776,-151.0,0.00034898,120]
[314388959,1708257031785,-499.99,0.00034898,2]
[314388961,1708257031794,-150.0,0.00034999,2]
[314388963,1708257031804,-300.35750065,0.00035,4]
[314388965,1708257031813,-700.67102019,0.00035,4]
[314388967,1708257031823,-206.0,0.00035159,18]
[314388969,1708257031832,-155.0,0.00035193,2]
[314388971,1708257031842,-2108.0,0.000352,2]
[314388973,1708257031852,-15957.0,0.000352,2]
[314388975,1708257031862,-660.38,0.00035485,2]
[314388977,1708257031871,-165.81,0.00035486,2]
[314388979,1708257031881,-151.0,0.0003561,30]
[314388981,1708257031890,-500.0,0.00035616,2]
[314388983,1708257031899,-600.0,0.00035682,2]
[314388985,1708257031908,-400.0,0.00035778,2]
[314388986,1708257031917,-154.21,0.00035783,2]